lending/lending_fUSD_20250224
["ID","MTS","AMOUNT","RATE_DAILY","PERIOD"]
[354260547,1740370260895,-2054.61,0.00016931,2]
[354260548,1740370260904,-1628.62,0.00016931,2]
[354260549,1740370260915,-599.87,0.00016931,2]
[354260550,1740370260924,-3117.91,0.00016931,2]
[354260551,1740370260934,-4818.73,0.00016931,2]
[354260552,1740370260943,-470.24678473,0.00016931,2]
[354260553,1740370260953,-655.46,0.00016931,2]
[354260554,1740370260962,-5552.05,0.00016931,2]
[354260555,1740370260971,-500.0,0.00016931,2]
[354260556,1740370260980,-1407.53,0.00016931,2]
[354260557,1740370260989,-1303.65,0.00016931,2]
[354260558,1740370260998,-2523.47,0.00016931,2]
[354260559,1740370261007,-1935.81,0.00016931,2]
[354260560,1740370261016,-1791.53,0.00016931,2]
[354260561,1740370261025,-1194.26,0.00016931,2]
[354260562,1740370261034,-151.0,0.00016931,2]
[354260563,1740370261043,-445.283686,0.00016931,2]
[354260564,1740370261053,-3040.22,0.00016931,2]
[354260565,1740370261062,-555.36,0.00016931,2]
[354260566,1740370261076,-2447.95,0.00016931,2]
[354260567,1740370261085,-778.73,0.00016931,2]
[354260568,1740370261094,-445.283686,0.00016931,2]
[354260569,1740370261103,-2805.33,0.00016931,2]
[354260570,1740370261113,-1963.82,0.00016931,2]
[354260571,1740370261122,-1830.49,0.00016931,2]
[354260572,1740370261131,-510.27896932,0.00016931,2]
[354260573,1740370261139,-3178.28,0.00016931,2]
[354260574,1740370261150,-1465.42,0.00016931,2]
[354260575,1740370261160,-3050.1,0.00016931,2]
[354260576,1740370261169,-1928.5,0.00016931,2]
[354260577,1740370261178,-1941.07,0.00016931,2]
[354260578,1740370261187,-748.66,0.00016931,2]
[354260579,1740370261195,-500.0,0.00016931,2]
[354260580,1740370261204,-1478.69,0.00016931,2]
[354260581,1740370261213,-2173.14,0.00016931,2]
[354260582,1740370261222,-3736.47,0.00016931,2]
[354260583,1740370261231,-1220.36,0.00016931,2]
[354260584,1740370261240,-500.0,0.00016931,2]
[354260585,1740370261249,-1666.17,0.00016931,2]
[354260586,1740370261259,-2977.97,0.00016931,2]
[354260587,1740370261268,-1017.67,0.00016931,2]
[354260588,1740370261277,-1640.63,0.00016931,2]
[354260589,1740370261287,-6338.02,0.00016931,2]
[354260590,1740370261296,-2867.15,0.00016931,2]
[354260591,1740370261305,-841.89,0.00016931,2]
[354260592,1740370261314,-500.0,0.00016931,2]
[354260593,1740370261323,-2143.08,0.00016931,2]
[354260594,1740370261332,-500.0,0.00016931,2]
[354260595,1740370261341,-2766.52,0.00016931,2]
[354260596,1740370261350,-931.52,0.00016931,2]
[354260597,1740370261359,-500.0,0.00016931,2]
[354260598,1740370261368,-500.0,0.00016931,2]
[354260599,1740370261378,-549.15,0.00016931,2]
[354260600,1740370261387,-500.0,0.00016931,2]
[354260601,1740370261397,-2546.08,0.00016931,2]
[354260602,1740370261406,-500.0,0.00016931,2]
[354260603,1740370261416,-1331.74,0.00016931,2]
[354260604,1740370261425,-1142.48,0.00016931,2]
[354260605,1740370261434,-1700.65,0.00016931,2]
[354260606,1740370261443,-1357.58,0.00016931,2]
[354260607,1740370261453,-3135.47,0.00016931,2]
[354260608,1740370261462,-500.0,0.00016931,2]
[354260609,1740370261471,-2422.92,0.00016931,2]
[354260610,1740370261480,-500.0,0.00016931,2]
[354260611,1740370261489,-1200.83,0.00016931,2]
[354260612,1740370261498,-1256.88,0.00016931,2]
[354260613,1740370261508,-985.51,0.00016931,2]
[354260614,1740370261517,-2703.34,0.00016931,2]
[354260615,1740370261526,-1243.49,0.00016931,2]
[354260616,1740370261536,-500.0,0.00016931,2]
[354260617,1740370261545,-2863.31,0.00016931,2]
[354260618,1740370261554,-2741.9,0.00016931,2]
[354260619,1740370261563,-3475.77,0.00016931,2]
[354260620,1740370261572,-807.12,0.00016931,2]
[354260621,1740370261580,-2094.5,0.00016931,2]
[354260622,1740370261589,-1429.41,0.00016931,2]
[354260623,1740370261598,-656.42,0.00016931,2]
[354260624,1740370261607,-1109.03,0.00016931,2]
[354260625,1740370261616,-3155.01,0.00016931,2]
[354260626,1740370261625,-1836.26,0.00016931,2]
[354260627,1740370261634,-2861.82,0.00016931,2]
[354260628,1740370261643,-381.70241549,0.00016931,2]
[354260629,1740370261652,-1222.45,0.00016931,2]
[354260630,1740370261661,-1059.77,0.00016931,2]
[354260631,1740370261670,-1881.25,0.00016931,2]
[354260632,1740370261679,-2516.19,0.00016931,2]
[354260633,1740370261688,-1026.41,0.00016931,2]
[354260634,1740370261697,-500.0,0.00016931,2]
[354260635,1740370261706,-1040.13,0.00016931,2]
[354260636,1740370261715,-1687.26,0.00016931,2]
[354260637,1740370261724,-990.37,0.00016931,2]
[354260638,1740370261734,-500.0,0.00016931,2]
[354260639,1740370261743,-1952.17,0.00016931,2]
[354260640,1740370261753,-3199.22,0.00016931,2]
[354260641,1740370261762,-1386.4,0.00016931,2]
[354260642,1740370261771,-1126.95,0.00016931,2]
[354260643,1740370261780,-2480.34,0.00016931,2]
[354260644,1740370261790,-2631.9,0.00016931,2]
[354260645,1740370261798,-572.26,0.00016931,2]
[354260646,1740370261808,-4039.48,0.00016931,2]
[354260647,1740370261817,-3534.61,0.00016931,2]
[354260648,1740370261826,-500.0,0.00016931,2]
[354260649,1740370261835,-3523.63,0.00016931,2]
[354260650,1740370261844,-1787.16,0.00016931,2]
[354260651,1740370261853,-1888.6,0.00016931,2]
[354260652,1740370261863,-9640.15,0.00016931,2]
[354260653,1740370261872,-500.0,0.00016931,2]
[354260654,1740370261881,-2409.95,0.00016931,2]
[354260655,1740370261890,-2352.02,0.00016931,2]
[354260656,1740370261899,-1485.16,0.00016931,2]
[354260657,1740370261908,-500.0,0.00016931,2]
[354260658,1740370261918,-811.15,0.00016931,2]
[354260659,1740370261927,-500.0,0.00016931,2]
[354260660,1740370261936,-583.37,0.00016931,2]
[354260661,1740370261945,-2357.84,0.00016931,2]
[354260662,1740370261954,-739.0,0.00016931,2]
[354260663,1740370261963,-709.38,0.00016931,2]
[354260664,1740370261972,-4243.19,0.00016931,2]
[354260665,1740370261981,-1367.15,0.00016931,2]
[354260666,1740370261990,-3442.95,0.00016931,2]
[354260667,1740370261998,-2307.0,0.00016931,2]
[354260668,1740370262008,-853.06,0.00016931,2]
[354260669,1740370262016,-500.0,0.00016931,2]
[354260670,1740370262025,-500.0,0.00016931,2]
[354260671,1740370262034,-152.01,0.00016938,2]
[354260672,1740370262043,-1413.76,0.00016957,2]
[354260673,1740370262052,-500.0,0.00016958,2]
[354260674,1740370262061,-356.91908144,0.00016969,2]
[354260675,1740370262072,-500.0,0.00016985,2]
[354260676,1740370262081,-169.718971,0.00016992,5]
[354260677,1740370262090,-3547.15081598,0.00016995,2]
[354260678,1740370262099,-239.87115715,0.00016995,2]
[354260679,1740370262109,-500.0,0.00016999,2]
[354260680,1740370262118,-2402.0,0.00017,7]
[354260681,1740370262127,-4304.96534125,0.00017,3]
[354260682,1740370262136,-1000.0,0.00017,2]
[354260683,1740370262145,-1000.0,0.00017,2]
[354260684,1740370262154,-1000.0,0.00017,2]
[354260685,1740370262164,-1000.0,0.00017,2]
[354260686,1740370262173,-1000.0,0.00017,2]
[354260687,1740370262182,-1000.0,0.00017,2]
[354260688,1740370262192,-1000.0,0.00017,2]
[354260689,1740370262201,-1000.0,0.00017,2]
[354260690,1740370262210,-1000.0,0.00017,2]
[354260691,1740370262220,-1000.0,0.00017,2]
[354260692,1740370262229,-1000.0,0.00017,2]
[354260693,1740370262238,-1000.0,0.00017,2]
[354260694,1740370262247,-1000.0,0.00017,2]
[354260695,1740370262257,-1000.0,0.00017,2]
[354260696,1740370262266,-1000.0,0.00017,2]
[354260697,1740370262275,-1000.0,0.00017,2]
[354260698,1740370262285,-1000.0,0.00017,2]
[354260699,1740370262294,-1000.0,0.00017,2]
[354260700,1740370262303,-1000.0,0.00017,2]
[354260701,1740370262313,-1000.0,0.00017,2]
[354260702,1740370262322,-1000.0,0.00017,2]
[354260703,1740370262332,-1000.0,0.00017,2]
[354260704,1740370262341,-1000.0,0.00017,2]
[354260705,1740370262350,-1000.0,0.00017,2]
[354260706,1740370262360,-1000.0,0.00017,2]
[354260707,1740370262370,-1000.0,0.00017,2]
[354260708,1740370262379,-1000.0,0.00017,2]
[354260709,1740370262389,-1000.0,0.00017,2]
[354260710,1740370262398,-1000.0,0.00017,2]
[354260711,1740370262408,-1000.0,0.00017,2]
[354260712,1740370262418,-1000.0,0.00017,2]
[354260713,1740370262429,-365.68511479,0.00017,2]
[354260714,1740370262439,-650.0,0.00017,2]
[354260715,1740370262448,-1536.5894486,0.00017001,2]
[354260716,1740370262459,-1564.6495252,0.00017001,2]
[354260717,1740370262468,-1387.4747742,0.00017001,2]
[354260718,1740370262478,-500.0,0.00017012,2]
[354260719,1740370262487,-708.07,0.00017012,2]
[354260720,1740370262497,-708.07,0.00017012,2]
[354260721,1740370262506,-732.93892048,0.00017013,2]
[354260722,1740370262516,-931.01,0.00017013,2]
[354260723,1740370262525,-500.0,0.00017013,2]
[354260724,1740370262535,-538.99395,0.00017013,2]
[354260725,1740370262544,-586.522083,0.00017013,2]
[354260726,1740370262554,-654.56,0.00017013,2]
[354260727,1740370262563,-561.51,0.00017013,2]
[354260728,1740370262573,-500.0,0.00017013,2]
[354260729,1740370262582,-500.0,0.00017013,2]
[354260730,1740370262591,-500.0,0.00017013,2]
[354260731,1740370262601,-632.37,0.00017013,2]
[354260732,1740370262611,-500.0,0.00017013,2]
[354260733,1740370262620,-500.0,0.00017013,2]
[354260734,1740370262629,-500.0,0.00017013,2]
[354260735,1740370262639,-500.0,0.00017013,2]
[354260736,1740370262648,-500.0,0.00017013,2]
[354260737,1740370262656,-536.73,0.00017013,2]
[354260738,1740370262666,-500.0,0.00017013,2]
[354260739,1740370262675,-500.0,0.00017013,2]
[354260740,1740370262684,-500.0,0.00017013,2]
[354260741,1740370262694,-565.79,0.00017013,2]
[354260742,1740370262703,-585.43,0.00017013,2]
[354260743,1740370262713,-674.94,0.00017013,2]
[354260744,1740370262722,-500.0,0.00017013,2]
[354260745,1740370262731,-500.0,0.00017013,2]
[354260746,1740370262741,-745.66,0.00017013,2]
[354260747,1740370262750,-699.72,0.00017013,2]
[354260748,1740370262759,-500.0,0.00017013,2]
[354260749,1740370262768,-1904.22,0.00017013,2]
[354260750,1740370262778,-526.35,0.00017013,2]
[354260751,1740370262787,-500.0,0.00017013,2]
[354260752,1740370262796,-1002.13,0.00017013,2]
[354260753,1740370262806,-500.0,0.00017013,2]
[354260754,1740370262820,-1134.15,0.00017013,2]
[354260755,1740370262830,-500.0,0.00017013,2]
[354260756,1740370262839,-500.0,0.00017013,2]
[354260757,1740370262849,-571.09,0.00017013,2]
[354260758,1740370262858,-500.0,0.00017013,2]
[354260759,1740370262868,-553.86,0.00017013,2]
[354260760,1740370262877,-1052.61,0.00017013,2]
[354260761,1740370262887,-850.74,0.00017013,2]
[354260762,1740370262896,-1131.97,0.00017013,2]
[354260763,1740370262906,-500.0,0.00017013,2]
[354260764,1740370262915,-899.17,0.00017013,2]
[354260765,1740370262926,-500.0,0.00017013,2]
[354260766,1740370262935,-787.33,0.00017013,2]
[354260767,1740370262945,-500.0,0.00017013,2]
[354260768,1740370262954,-500.0,0.00017013,2]
[354260769,1740370262964,-1272.39,0.00017013,2]
[354260770,1740370262973,-500.0,0.00017013,2]
[354260771,1740370262982,-769.41,0.00017013,2]
[354260772,1740370262991,-891.59,0.00017013,2]
[354260773,1740370263000,-500.0,0.00017013,2]
[354260774,1740370263010,-746.3,0.00017013,2]
[354260775,1740370263020,-512.65,0.00017013,2]
[354260776,1740370263029,-1139.12,0.00017013,2]
[354260777,1740370263039,-629.92,0.00017013,2]
[354260778,1740370263048,-1166.53,0.00017013,2]
[354260779,1740370263058,-500.0,0.00017013,2]
[354260780,1740370263070,-500.0,0.00017013,2]
[354260781,1740370263080,-500.0,0.00017013,2]
[354260782,1740370263090,-654.42,0.00017013,2]
[354260783,1740370263100,-620.82,0.00017013,2]
[354260784,1740370263110,-500.0,0.00017013,2]
[354260785,1740370263120,-682.77,0.00017013,2]
[354260786,1740370263130,-589.28,0.00017013,2]
[354260787,1740370263139,-500.0,0.00017013,2]
[354260788,1740370263150,-677.74,0.00017013,2]
[354260789,1740370263160,-500.0,0.00017013,2]
[354260790,1740370263169,-500.0,0.00017013,2]
[354260791,1740370263178,-500.0,0.00017013,2]
[354260792,1740370263188,-500.0,0.00017013,2]
[354260793,1740370263198,-500.0,0.00017013,2]
[354260794,1740370263208,-515.59,0.00017013,2]
[354260795,1740370263218,-500.0,0.00017013,2]
[354260796,1740370263228,-500.0,0.00017013,2]
[354260797,1740370263238,-973.07,0.00017013,2]
[354260798,1740370263248,-500.0,0.00017013,2]
[354260799,1740370263262,-531.07,0.00017013,2]
[354260800,1740370263272,-614.59,0.00017013,2]
[354260801,1740370263282,-673.96,0.00017013,2]
[354260802,1740370263292,-500.0,0.00017013,2]
[354260803,1740370263302,-545.54,0.00017013,2]
[354260804,1740370263312,-500.0,0.00017013,2]
[354260805,1740370263321,-500.0,0.00017013,2]
[354260806,1740370263331,-500.0,0.00017013,2]
[354260807,1740370263341,-546.89,0.00017013,2]
[354260808,1740370263351,-583.18,0.00017013,2]
[354260809,1740370263361,-500.0,0.00017013,2]
[354260810,1740370263371,-882.41,0.00017013,2]
[354260811,1740370263381,-500.0,0.00017013,2]
[354260812,1740370263392,-502.84,0.00017013,2]
[354260813,1740370263402,-500.0,0.00017013,2]
[354260814,1740370263417,-576.49,0.00017013,2]
[354260815,1740370263428,-500.0,0.00017013,2]
[354260816,1740370263439,-500.0,0.00017013,2]
[354260817,1740370263449,-500.0,0.00017013,2]
[354260818,1740370263459,-277.69527266,0.00017013,2]
[354260819,1740370263469,-768.2,0.00017013,2]
[354260820,1740370263479,-500.0,0.00017013,2]
[354260821,1740370263490,-556.67,0.00017013,2]
[354260822,1740370263500,-500.0,0.00017013,2]
[354260823,1740370263510,-781.2,0.00017013,2]
[354260824,1740370263519,-992.75,0.00017013,2]
[354260825,1740370263529,-845.58,0.00017013,2]
[354260826,1740370263539,-822.7,0.00017013,2]
[354260827,1740370263548,-519.67,0.00017013,2]
[354260828,1740370263558,-506.17,0.00017013,2]
[354260829,1740370263567,-1117.0,0.00017013,2]
[354260830,1740370263578,-500.0,0.00017013,2]
[354260831,1740370263588,-611.16,0.00017013,2]
[354260832,1740370263597,-500.0,0.00017013,2]
[354260833,1740370263607,-500.0,0.00017013,2]
[354260834,1740370263617,-500.0,0.00017013,2]
[354260835,1740370263627,-1226.43,0.00017013,2]
[354260836,1740370263636,-887.69,0.00017013,2]
[354260837,1740370263646,-890.12,0.00017013,2]
[354260838,1740370263656,-500.0,0.00017013,2]
[354260839,1740370263666,-690.76,0.00017013,2]
[354260840,1740370263676,-689.31,0.00017013,2]
[354260841,1740370263686,-595.43,0.00017013,2]
[354260842,1740370263696,-500.0,0.00017013,2]
[354260843,1740370263705,-500.0,0.00017013,2]
[354260844,1740370263715,-929.89,0.00017013,2]
[354260845,1740370263725,-500.0,0.00017013,2]
[354260846,1740370263735,-688.58,0.00017013,2]
[354260847,1740370263745,-500.0,0.00017013,2]
[354260848,1740370263755,-500.0,0.00017013,2]
[354260849,1740370263765,-518.85,0.00017013,2]
[354260850,1740370263774,-500.0,0.00017013,2]
[354260851,1740370263784,-783.77,0.00017013,2]
[354260852,1740370263794,-627.66,0.00017013,2]
[354260853,1740370263804,-500.0,0.00017013,2]
[354260854,1740370263813,-1124.15,0.00017013,2]
[354260855,1740370263823,-500.0,0.00017013,2]
[354260856,1740370263833,-500.0,0.00017013,2]
[354260857,1740370263843,-500.0,0.00017013,2]
[354260858,1740370263853,-500.0,0.00017013,2]
[354260859,1740370263863,-648.07,0.00017013,2]
[354260860,1740370263873,-742.83,0.00017013,2]
[354260861,1740370263883,-544.47,0.00017013,2]
[354260862,1740370263894,-538.11,0.00017013,2]
[354260863,1740370263903,-606.9,0.00017013,2]
[354260864,1740370263914,-761.19,0.00017013,2]
[354260865,1740370263924,-500.0,0.00017013,2]
[354260866,1740370263933,-942.27,0.00017013,2]
[354260867,1740370263943,-500.0,0.00017013,2]
[354260868,1740370263953,-1119.02,0.00017013,2]
[354260869,1740370263963,-719.34,0.00017013,2]
[354260870,1740370263972,-604.42,0.00017013,2]
[354260871,1740370263982,-500.0,0.00017013,2]
[354260872,1740370263993,-500.0,0.00017013,2]
[354260873,1740370264003,-531.87,0.00017013,2]
[354260874,1740370264012,-985.74,0.00017013,2]
[354260875,1740370264021,-955.59,0.00017013,2]
[354260876,1740370264031,-506.69,0.00017013,2]
[354260877,1740370264040,-1299.46,0.00017013,2]
[354260878,1740370264050,-500.0,0.00017013,2]
[354260879,1740370264060,-529.88,0.00017013,2]
[354260880,1740370264074,-500.0,0.00017013,2]
[354260881,1740370264083,-603.32,0.00017013,2]
[354260882,1740370264093,-2279.4,0.00017013,2]
[354260883,1740370264102,-500.0,0.00017013,2]
[354260884,1740370264113,-1087.58,0.00017013,2]
[354260885,1740370264123,-1355.43,0.00017013,2]
[354260886,1740370264133,-1419.3,0.00017013,2]
[354260887,1740370264143,-1326.58,0.00017013,2]
[354260888,1740370264153,-990.6,0.00017013,2]
[354260889,1740370264164,-518.6,0.00017013,2]
[354260890,1740370264174,-1927.97,0.00017013,2]
[354260891,1740370264184,-1147.32,0.00017013,2]
[354260892,1740370264195,-1418.58,0.00017013,2]
[354260893,1740370264205,-500.0,0.00017013,2]
[354260894,1740370264214,-881.04,0.00017013,2]
[354260895,1740370264224,-500.0,0.00017013,2]
[354260896,1740370264233,-500.0,0.00017013,2]
[354260897,1740370264243,-2363.12,0.00017013,2]
[354260898,1740370264253,-2242.46,0.00017013,2]
[354260899,1740370264263,-500.0,0.00017013,2]
[354260900,1740370264507,-500.0,0.00017013,2]
[354260901,1740370264526,-500.0,0.00017013,2]
[354260902,1740370264536,-1062.87,0.00017013,2]
[354260903,1740370264545,-618.22,0.00017013,2]
[354260904,1740370264555,-2156.86,0.00017013,2]
[354260905,1740370264564,-1442.62,0.00017013,2]
[354260906,1740370264574,-834.42,0.00017013,2]
[354260907,1740370264583,-2002.34,0.00017013,2]
[354260908,1740370264593,-693.2,0.00017013,2]
[354260909,1740370264603,-1463.93,0.00017013,2]
[354260910,1740370264612,-1507.75,0.00017013,2]
[354260911,1740370264621,-1055.17,0.00017013,2]
[354260912,1740370264630,-590.46,0.00017013,2]
[354260913,1740370264640,-731.62,0.00017013,2]
[354260914,1740370264650,-1951.74,0.00017013,2]
[354260915,1740370264659,-1780.85,0.00017013,2]
[354260916,1740370264670,-500.0,0.00017013,2]
[354260917,1740370264679,-500.0,0.00017013,2]
[354260918,1740370264688,-11267.85,0.00017013,2]
[354260919,1740370264697,-582.35,0.00017013,2]
[354260920,1740370264707,-822.47,0.00017013,2]
[354260921,1740370264716,-379.16504353,0.00017013,2]
[354260922,1740370264725,-773.02,0.00017013,2]
[354260923,1740370264735,-2054.61,0.00017013,2]
[354260924,1740370264744,-1628.62,0.00017013,2]
[354260925,1740370264754,-599.87,0.00017013,2]
[354260926,1740370264764,-3117.91,0.00017013,2]
[354260927,1740370264773,-4818.73,0.00017013,2]
[354260928,1740370264783,-655.46,0.00017013,2]
[354260929,1740370264793,-5552.05,0.00017013,2]
[354260930,1740370264803,-500.0,0.00017013,2]
[354260931,1740370264812,-1407.53,0.00017013,2]
[354260932,1740370264822,-1303.65,0.00017013,2]
[354260933,1740370264831,-2523.47,0.00017013,2]
[354260934,1740370264840,-1791.53,0.00017013,2]
[354260935,1740370264850,-1935.81,0.00017013,2]
[354260936,1740370264859,-1194.26,0.00017013,2]
[354260937,1740370264869,-151.0,0.00017013,2]
[354260938,1740370264878,-445.283686,0.00017013,2]
[354260939,1740370264886,-3040.22,0.00017013,2]
[354260940,1740370264896,-555.36,0.00017013,2]
[354260941,1740370264905,-2447.95,0.00017013,2]
[354260942,1740370264916,-778.73,0.00017013,2]
[354260943,1740370264925,-445.283686,0.00017013,2]
[354260944,1740370264934,-2805.33,0.00017013,2]
[354260945,1740370264943,-1963.82,0.00017013,2]
[354260946,1740370264952,-1830.49,0.00017013,2]
[354260947,1740370264961,-3178.28,0.00017013,2]
[354260948,1740370264971,-1465.42,0.00017013,2]
[354260949,1740370264980,-3050.1,0.00017013,2]
[354260950,1740370264989,-1928.5,0.00017013,2]
[354260951,1740370264998,-1941.07,0.00017013,2]
[354260952,1740370265008,-748.66,0.00017013,2]
[354260953,1740370265017,-500.0,0.00017013,2]
[354260954,1740370265026,-1478.69,0.00017013,2]
[354260955,1740370265036,-2173.14,0.00017013,2]
[354260956,1740370265046,-3736.47,0.00017013,2]
[354260957,1740370265055,-1220.36,0.00017013,2]
[354260958,1740370265064,-500.0,0.00017013,2]
[354260959,1740370265078,-1666.17,0.00017013,2]
[354260960,1740370265087,-2977.97,0.00017013,2]
[354260961,1740370265097,-1017.67,0.00017013,2]
[354260962,1740370265107,-1640.63,0.00017013,2]
[354260963,1740370265116,-6338.02,0.00017013,2]
[354260964,1740370265126,-2867.15,0.00017013,2]
[354260965,1740370265135,-841.89,0.00017013,2]
[354260966,1740370265145,-500.0,0.00017013,2]
[354260967,1740370265155,-2143.08,0.00017013,2]
[354260968,1740370265165,-500.0,0.00017013,2]
[354260969,1740370265174,-2766.52,0.00017013,2]
[354260970,1740370265184,-931.52,0.00017013,2]
[354260971,1740370265193,-380.16875851,0.00017013,2]
[354260972,1740370265202,-500.0,0.00017013,2]
[354260973,1740370265212,-549.15,0.00017013,2]
[354260974,1740370265221,-500.0,0.00017013,2]
[354260975,1740370265230,-2546.08,0.00017013,2]
[354260976,1740370265240,-500.0,0.00017013,2]
[354260977,1740370265249,-1331.74,0.00017013,2]
[354260978,1740370265258,-1142.48,0.00017013,2]
[354260979,1740370265267,-1700.65,0.00017013,2]
[354260980,1740370265276,-1357.58,0.00017013,2]
[354260981,1740370265285,-500.0,0.00017013,2]
[354260982,1740370265295,-2422.92,0.00017013,2]
[354260983,1740370265304,-3135.47,0.00017013,2]
[354260984,1740370265313,-500.0,0.00017013,2]
[354260985,1740370265322,-1200.83,0.00017013,2]
[354260986,1740370265332,-1256.88,0.00017013,2]
[354260987,1740370265341,-985.51,0.00017013,2]
[354260988,1740370265350,-2703.34,0.00017013,2]
[354260989,1740370265360,-1243.49,0.00017013,2]
[354260990,1740370265369,-500.0,0.00017013,2]
[354260991,1740370265379,-2863.31,0.00017013,2]
[354260992,1740370265389,-2741.9,0.00017013,2]
[354260993,1740370265399,-3475.77,0.00017013,2]
[354260994,1740370265408,-807.12,0.00017013,2]
[354260995,1740370265419,-2094.5,0.00017013,2]
[354260996,1740370265428,-1429.41,0.00017013,2]
[354260997,1740370265438,-656.42,0.00017013,2]
[354260998,1740370265448,-1109.03,0.00017013,2]
[354260999,1740370265458,-3155.01,0.00017013,2]
[354261000,1740370265468,-1836.26,0.00017013,2]
[354261001,1740370265478,-2861.82,0.00017013,2]
[354261002,1740370265487,-1222.45,0.00017013,2]
[354261003,1740370265497,-1059.77,0.00017013,2]
[354261004,1740370265506,-1881.25,0.00017013,2]
[354261005,1740370265516,-2516.19,0.00017013,2]
[354261006,1740370265525,-1026.41,0.00017013,2]
[354261007,1740370265535,-500.0,0.00017013,2]
[354261008,1740370265544,-1040.13,0.00017013,2]
[354261009,1740370265554,-1687.26,0.00017013,2]
[354261010,1740370265564,-990.37,0.00017013,2]
[354261011,1740370265573,-316.50871223,0.00017013,2]
[354261012,1740370265583,-1952.17,0.00017013,2]
[354261013,1740370265592,-3199.22,0.00017013,2]
[354261014,1740370265602,-1386.4,0.00017013,2]
[354261015,1740370265611,-1126.95,0.00017013,2]
[354261016,1740370265621,-2480.34,0.00017013,2]
[354261017,1740370265630,-2631.9,0.00017013,2]
[354261018,1740370265639,-4039.48,0.00017013,2]
[354261019,1740370265649,-572.26,0.00017013,2]
[354261020,1740370265658,-3534.61,0.00017013,2]
[354261021,1740370265668,-500.0,0.00017013,2]
[354261022,1740370265677,-3523.63,0.00017013,2]
[354261023,1740370265686,-1787.16,0.00017013,2]
[354261024,1740370265696,-1888.6,0.00017013,2]
[354261025,1740370265705,-9640.15,0.00017013,2]
[354261026,1740370265714,-500.0,0.00017013,2]
[354261027,1740370265722,-2409.95,0.00017013,2]
[354261028,1740370265732,-2352.02,0.00017013,2]
[354261029,1740370265741,-1485.16,0.00017013,2]
[354261030,1740370265750,-500.0,0.00017013,2]
[354261031,1740370265760,-811.15,0.00017013,2]
[354261032,1740370265769,-500.0,0.00017013,2]
[354261033,1740370265778,-583.37,0.00017013,2]
[354261034,1740370265788,-2357.84,0.00017013,2]
[354261035,1740370265797,-739.0,0.00017013,2]
[354261036,1740370265806,-4243.19,0.00017013,2]
[354261037,1740370265815,-709.38,0.00017013,2]
[354261038,1740370265824,-1367.15,0.00017013,2]
[354261039,1740370265834,-3442.95,0.00017013,2]
[354261040,1740370265843,-2307.0,0.00017013,2]
[354261041,1740370265852,-853.06,0.00017013,2]
[354261042,1740370265861,-500.0,0.00017013,2]
[354261043,1740370265870,-234.48,0.00017013,2]
[354261044,1740370265879,-987.57,0.00017014,2]
[354261045,1740370265889,-987.57,0.00017014,2]
[354261046,1740370265898,-987.57,0.00017014,2]